lending/lending_fUSD_20250501
["ID","MTS","AMOUNT","RATE_DAILY","PERIOD"]
[359496069,1746065449816,-151.0,0.0003863,14]
[359496070,1746065449826,-174.065724,0.0003863,14]
[359496071,1746065449836,-151.0,0.0003863,14]
[359496072,1746065449846,-151.0,0.0003863,14]
[359496073,1746065449856,-151.0,0.0003863,14]
[359496074,1746065449868,-152.816945,0.0003863,14]
[359496075,1746065449877,-151.0,0.0003863,14]
[359496076,1746065449887,-151.0,0.0003863,14]
[359496077,1746065449896,-151.0,0.0003863,14]
[359496078,1746065449905,-562.0,0.00038657,7]
[359496079,1746065449916,-509.0,0.00038657,7]
[359496080,1746065449925,-562.0,0.00038685,7]
[359496081,1746065449935,-509.0,0.00038685,7]
[359496082,1746065449944,-160.0,0.000387,57]
[359496083,1746065449954,-4176.96,0.000387,14]
[359496084,1746065449963,-584.83338194,0.00038712,7]
[359496085,1746065449972,-512.47592723,0.00038712,7]
[359496086,1746065449983,-150.0,0.00038748,7]
[359496087,1746065449992,-503.0,0.00038767,2]
[359496088,1746065450002,-352.39389216,0.00038865,2]
[359496089,1746065450010,-200.0,0.0003888,2]
[359496090,1746065450020,-192.09798096,0.0003888,2]
[359496091,1746065450029,-152.158669,0.0003888,14]
[359496092,1746065450038,-151.0,0.0003888,14]
[359496093,1746065450047,-151.0,0.0003888,14]
[359496094,1746065450057,-151.0,0.0003888,14]
[359496095,1746065450067,-151.0,0.0003888,14]
[359496096,1746065450076,-151.0,0.0003888,14]
[359496097,1746065450086,-151.0,0.0003888,14]
[359496098,1746065450095,-182.380855,0.0003888,14]
[359496099,1746065450104,-263.071309,0.0003888,14]
[359496100,1746065450113,-263.071309,0.0003888,14]
[359496101,1746065450123,-151.0,0.0003888,14]
[359496102,1746065450132,-2998.576951,0.0003888,14]
[359496103,1746065450142,-2998.576951,0.0003888,14]
[359496104,1746065450152,-151.0,0.0003888,14]
[359496105,1746065450163,-151.0,0.0003888,14]
[359496106,1746065450173,-450.0,0.00038904,12]
[359496107,1746065450183,-218456.91,0.00038904,5]
[359496108,1746065450192,-184.996743,0.00038904,14]
[359496109,1746065450202,-184.996736,0.00038904,14]
[359496110,1746065450211,-151.0,0.00038904,14]
[359496111,1746065450221,-151.0,0.00038904,14]
[359496112,1746065450232,-151.0,0.00038904,14]
[359496113,1746065450242,-151.0,0.00038904,14]
[359496114,1746065450252,-151.0,0.00038904,14]
[359496115,1746065450261,-151.0,0.00038904,14]
[359496116,1746065450273,-151.0,0.00038904,14]
[359496117,1746065450282,-151.0,0.00038904,14]
[359496118,1746065450297,-151.0,0.00038904,14]
[359496119,1746065450307,-151.0,0.00038904,14]
[359496120,1746065450317,-1315.764669,0.00038904,14]
[359496121,1746065450327,-151.0,0.00038904,14]
[359496122,1746065450338,-154.949215,0.00038904,14]
[359496123,1746065450560,-154.279935,0.00038904,14]
[359496124,1746065450571,-151.0,0.00038904,14]
[359496125,1746065450581,-151.0,0.00038904,14]
[359496126,1746065450591,-151.0,0.00038904,14]
[359496127,1746065450602,-151.0,0.00038904,14]
[359496128,1746065450611,-1390.123345,0.00038904,14]
[359496129,1746065450621,-1390.123345,0.00038904,14]
[359496130,1746065450630,-153.954617,0.00038904,14]
[359496131,1746065450639,-151.0,0.00038904,5]
[359496132,1746065450651,-500.0,0.00038904,30]
[359496133,1746065450660,-160.72490937,0.00038915,2]
[359496134,1746065450670,-990.39,0.00038933,2]
[359496135,1746065450679,-206.0,0.0003897,2]
[359496136,1746065450688,-207.0,0.0003897,30]
[359496137,1746065450698,-6164.72002559,0.00039,10]
[359496138,1746065450707,-444.05,0.00039,2]
[359496139,1746065450717,-1000.0,0.00039,120]
[359496140,1746065450728,-1073.38,0.00039,2]
[359496141,1746065450738,-1073.38,0.00039,2]
[359496142,1746065450747,-340.59,0.00039,2]
[359496143,1746065450757,-340.59,0.00039,2]
[359496144,1746065450766,-998.70332162,0.00039,30]
[359496145,1746065450775,-508.37,0.00039,120]
[359496146,1746065450785,-800.0,0.00039,2]
[359496147,1746065450795,-160.0,0.00039,2]
[359496148,1746065450806,-1061.0,0.00039,7]
[359496149,1746065450815,-5678.58013427,0.00039003,14]
[359496150,1746065450825,-150.0,0.00039065,7]
[359496151,1746065450835,-157.73745098,0.00039078,7]
[359496152,1746065450845,-112878.993974,0.00039151,2]
[359496153,1746065450855,-3548.6826357,0.00039151,2]
[359496154,1746065450864,-12494.9741926,0.00039151,2]
[359496155,1746065450873,-500.0,0.00039177,10]
[359496156,1746065450884,-450.0,0.00039178,12]
[359496157,1746065450893,-218456.91,0.00039178,5]
[359496158,1746065450903,-150.52,0.00039178,2]
[359496159,1746065450912,-577.39,0.00039217,2]
[359496160,1746065450921,-200.0,0.00039269,2]
[359496161,1746065450931,-508.37,0.000393,120]
[359496162,1746065450941,-177.39555671,0.00039352,13]
[359496163,1746065450951,-150.0,0.0003937,2]
[359496164,1746065450960,-150.0,0.00039383,7]
[359496165,1746065450970,-500.0,0.00039399,10]
[359496166,1746065450981,-4176.96,0.000394,14]
[359496167,1746065450992,-151.08,0.00039402,2]
[359496168,1746065451002,-300.0,0.00039402,2]
[359496169,1746065451011,-150.0,0.00039402,2]
[359496170,1746065451022,-150.0,0.00039402,2]
[359496171,1746065451034,-351.92,0.00039402,2]
[359496172,1746065451045,-152.0,0.00039441,11]
[359496173,1746065451056,-218456.91,0.00039452,5]
[359496174,1746065451067,-151.0,0.00039452,14]
[359496175,1746065451078,-151.0,0.00039452,14]
[359496176,1746065451088,-154.853156,0.00039452,14]
[359496177,1746065451100,-153.614169,0.00039452,14]
[359496178,1746065451110,-296.478012,0.00039452,14]
[359496179,1746065451122,-151.0,0.00039452,14]
[359496180,1746065451134,-151.0,0.00039452,14]
[359496181,1746065451144,-151.0,0.00039452,14]
[359496182,1746065451155,-263.071309,0.00039452,14]
[359496183,1746065451163,-151.0,0.00039452,14]
[359496184,1746065451174,-263.071309,0.00039452,14]
[359496185,1746065451183,-176.406723,0.00039452,14]
[359496186,1746065451193,-2998.576951,0.00039452,14]
[359496187,1746065451202,-2998.576951,0.00039452,14]
[359496188,1746065451212,-157.294617,0.00039452,14]
[359496189,1746065451222,-151.0,0.00039452,14]
[359496190,1746065451232,-151.0,0.00039452,14]
[359496191,1746065451241,-151.0,0.00039452,14]
[359496192,1746065451250,-151.0,0.00039452,14]
[359496193,1746065451259,-151.0,0.00039452,14]
[359496194,1746065451268,-151.0,0.00039452,14]
[359496195,1746065451277,-151.0,0.00039452,14]
[359496196,1746065451286,-502.0,0.00039538,60]
[359496197,1746065451295,-500.0,0.00039538,60]
[359496198,1746065451305,-500.0,0.00039538,60]
[359496199,1746065451314,-500.0,0.00039538,60]
[359496200,1746065451323,-500.0,0.00039538,60]
[359496201,1746065451332,-611.0,0.00039538,60]
[359496202,1746065451341,-200.0,0.00039538,13]
[359496203,1746065451350,-200.0,0.00039538,13]
[359496204,1746065451359,-200.0,0.00039538,13]
[359496205,1746065451368,-346.0,0.00039538,13]
[359496206,1746065451377,-200.0,0.00039662,2]
[359496207,1746065451386,-150.0,0.000397,7]
[359496208,1746065451395,-508.37,0.000397,120]
[359496209,1746065451404,-160.0,0.000397,60]
[359496210,1746065451413,-249.57635582,0.00039726,7]
[359496211,1746065451422,-204.48113391,0.00039726,7]
[359496212,1746065451432,-3521.34705591,0.00039726,7]
[359496213,1746065451441,-6681.0,0.00039726,5]
[359496214,1746065451451,-218456.91,0.00039726,5]
[359496215,1746065451460,-150.0,0.00039726,2]
[359496216,1746065451469,-5800.0,0.00039726,14]
[359496217,1746065451478,-151.0,0.00039726,14]
[359496218,1746065451488,-291.090835,0.00039726,14]
[359496219,1746065451497,-166.891586,0.00039726,14]
[359496220,1746065451506,-291.090835,0.00039726,14]
[359496221,1746065451515,-151.0,0.00039726,14]
[359496222,1746065451524,-164.671152,0.00039726,14]
[359496223,1746065451534,-491.613061,0.00039726,14]
[359496224,1746065451543,-491.613061,0.00039726,14]
[359496225,1746065451552,-151.0,0.00039726,14]
[359496226,1746065451561,-151.0,0.00039726,14]
[359496227,1746065451571,-226.256538,0.00039726,14]
[359496228,1746065451580,-159.238569,0.00039726,14]
[359496229,1746065451589,-151.0,0.00039726,14]
[359496230,1746065451598,-236.059044,0.00039726,14]
[359496231,1746065451607,-236.059044,0.00039726,14]
[359496232,1746065451616,-151.0,0.00039726,14]
[359496233,1746065451626,-151.0,0.00039726,14]
[359496234,1746065451635,-151.0,0.00039726,14]
[359496235,1746065451646,-153.00613,0.00039726,14]
[359496236,1746065451658,-196.840339,0.00039726,14]
[359496237,1746065451668,-525.59217,0.00039726,14]
[359496238,1746065451679,-151.0,0.00039726,14]
[359496239,1746065451689,-151.0,0.00039726,14]
[359496240,1746065451698,-228.586107,0.00039726,14]
[359496241,1746065451707,-234.111035,0.00039726,14]
[359496242,1746065451717,-155.722336,0.00039726,14]
[359496243,1746065451727,-502.714282,0.00039726,14]
[359496244,1746065451737,-502.714282,0.00039726,14]
[359496245,1746065451747,-151.0,0.00039726,14]
[359496246,1746065451757,-151.0,0.00039726,14]
[359496247,1746065451766,-151.0,0.00039726,14]
[359496248,1746065451775,-151.0,0.00039726,14]
[359496249,1746065451786,-151.0,0.00039726,14]
[359496250,1746065451796,-358.496672,0.00039726,14]
[359496251,1746065451805,-151.0,0.00039726,14]
[359496252,1746065451814,-358.496672,0.00039726,14]
[359496253,1746065451824,-1390.123345,0.00039726,14]
[359496254,1746065451833,-1390.123345,0.00039726,14]
[359496255,1746065451843,-151.0,0.00039726,14]
[359496256,1746065451852,-151.0,0.00039726,14]
[359496257,1746065451861,-181.5,0.00039734,30]
[359496258,1746065451870,-666.0,0.00039755,2]
[359496259,1746065451880,-303.49,0.00039782,2]
[359496260,1746065451889,-500.0,0.000398,5]
[359496261,1746065451899,-151.0,0.00039865,14]
[359496262,1746065451908,-151.0,0.00039865,14]
[359496263,1746065451918,-178.885445,0.00039865,14]
[359496264,1746065451927,-151.0,0.00039865,14]
[359496265,1746065451937,-5678.58013427,0.00039866,15]
[359496266,1746065451946,-1801.22639522,0.00039876,31]
[359496267,1746065451956,-151.0,0.00039973,14]
[359496268,1746065451966,-314.905682,0.00039973,14]
[359496269,1746065451977,-314.905682,0.00039973,14]
[359496270,1746065451987,-170.232697,0.00039973,14]
[359496271,1746065451997,-151.0,0.00039973,14]
[359496272,1746065452006,-151.0,0.00039973,14]
[359496273,1746065452017,-152.769628,0.00039973,14]
[359496274,1746065452029,-151.0,0.00039973,14]
[359496275,1746065452038,-268.833068,0.00039973,14]
[359496276,1746065452047,-151.0,0.00039973,14]
[359496277,1746065452057,-151.0,0.00039973,14]
[359496278,1746065452071,-151.0,0.00039973,14]
[359496279,1746065452081,-151.0,0.00039973,14]
[359496280,1746065452092,-151.0,0.00039973,14]
[359496281,1746065452103,-500.0,0.00039999,10]
[359496282,1746065452113,-10000.0,0.0004,10]
[359496283,1746065452125,-150.0,0.0004,60]
[359496284,1746065452135,-1889.79067837,0.0004,30]
[359496285,1746065452146,-366.87865664,0.0004,30]
[359496286,1746065452155,-500.0,0.0004,120]
[359496287,1746065452164,-10161.93288994,0.0004,30]
[359496288,1746065452174,-77155.06517663,0.0004,30]
[359496289,1746065452183,-150.0,0.0004,60]
[359496290,1746065452193,-643.8171335,0.0004,2]
[359496291,1746065452202,-170.92390991,0.0004,30]
[359496292,1746065452211,-218456.91,0.0004,5]
[359496293,1746065452221,-1000.0,0.0004,120]
[359496294,1746065452231,-206.0,0.0004,2]
[359496295,1746065452241,-207.0,0.0004,30]
[359496296,1746065452251,-151.0,0.0004,14]
[359496297,1746065452260,-156.244358,0.0004,14]
[359496298,1746065452269,-155.611597,0.0004,14]
[359496299,1746065452278,-151.0,0.0004,14]
[359496300,1746065452427,-222.125682,0.0004,14]
[359496301,1746065452437,-222.125682,0.0004,14]
[359496302,1746065452447,-157.6,0.0004,30]
[359496303,1746065452456,-157.6,0.0004,30]
[359496304,1746065452466,-281.740845,0.0004,14]
[359496305,1746065452475,-5309.0,0.0004,10]
[359496306,1746065452486,-151.0,0.0004,14]
[359496307,1746065452495,-151.0,0.0004,14]
[359496308,1746065452505,-151.0,0.0004,14]
[359496309,1746065452514,-151.0,0.0004,14]
[359496310,1746065452523,-151.0,0.0004,14]
[359496311,1746065452532,-161.827892,0.0004,14]
[359496312,1746065452541,-151.0,0.0004,14]
[359496313,1746065452550,-151.0,0.0004,14]
[359496314,1746065452559,-151.0,0.0004,14]
[359496315,1746065452569,-1315.764669,0.0004,14]
[359496316,1746065452578,-1326.03,0.0004,2]
[359496317,1746065452588,-150.0,0.00040017,7]
[359496318,1746065452597,-1000.0,0.00040049,7]
[359496319,1746065452606,-508.37,0.000401,120]
[359496320,1746065452615,-150.52,0.00040183,2]
[359496321,1746065452624,-1000.0,0.00040186,7]
[359496322,1746065452634,-643.4402543,0.00040196,5]
[359496323,1746065452645,-613.47,0.000402,30]
[359496324,1746065452657,-4176.96,0.000402,14]
[359496325,1746065452666,-664.50740952,0.00040271,5]
[359496326,1746065452676,-500.0,0.00040272,10]
[359496327,1746065452687,-464.8996168,0.00040272,10]
[359496328,1746065452696,-218456.91,0.00040273,5]
[359496329,1746065452707,-164.382251,0.00040273,14]
[359496330,1746065452716,-151.0,0.00040273,14]
[359496331,1746065452727,-151.0,0.00040273,14]
[359496332,1746065452738,-151.0,0.00040273,14]
[359496333,1746065452748,-151.0,0.00040273,14]
[359496334,1746065452757,-263.071309,0.00040273,14]
[359496335,1746065452767,-151.0,0.00040273,14]
[359496336,1746065452776,-263.071309,0.00040273,14]
[359496337,1746065452786,-2998.576951,0.00040273,14]
[359496338,1746065452795,-2998.576951,0.00040273,14]
[359496339,1746065452805,-190.761533,0.00040273,14]
[359496340,1746065452814,-161.292651,0.00040273,14]
[359496341,1746065452823,-156.014225,0.00040273,14]
[359496342,1746065452833,-151.0,0.00040273,14]
[359496343,1746065452843,-151.0,0.00040273,14]
[359496344,1746065452852,-151.0,0.00040273,14]
[359496345,1746065452861,-285.754276,0.00040273,14]
[359496346,1746065452871,-152.0,0.00040279,5]
[359496347,1746065452880,-439.47,0.000403,31]
[359496348,1746065452890,-439.47,0.000403,31]
[359496349,1746065452899,-439.47,0.000403,31]
[359496350,1746065452908,-439.47,0.000403,31]
[359496351,1746065452918,-439.47,0.000403,31]
[359496352,1746065452927,-439.47,0.000403,31]
[359496353,1746065452936,-439.47,0.000403,31]
[359496354,1746065452946,-439.47,0.000403,31]
[359496355,1746065452956,-439.47,0.000403,31]
[359496356,1746065452965,-439.47,0.000403,31]
[359496357,1746065452976,-439.47,0.000403,31]
[359496358,1746065452987,-439.47,0.000403,31]
[359496359,1746065452996,-439.47,0.000403,31]
[359496360,1746065453005,-439.47,0.000403,31]
[359496361,1746065453014,-439.47,0.000403,31]
[359496362,1746065453022,-439.47,0.000403,31]
[359496363,1746065453032,-439.47,0.000403,31]
[359496364,1746065453041,-439.47,0.000403,31]
[359496365,1746065453049,-439.47,0.000403,31]
[359496366,1746065453059,-439.47,0.000403,31]
[359496367,1746065453071,-439.47,0.000403,31]
[359496368,1746065453082,-439.47,0.000403,31]
[359496369,1746065453092,-439.47,0.000403,31]
[359496370,1746065453102,-439.47,0.000403,31]
[359496371,1746065453112,-150.0,0.00040334,7]
[359496372,1746065453122,-152.0,0.00040373,12]
[359496373,1746065453132,-444.05,0.000404,2]
[359496374,1746065453143,-1380.75279905,0.00040421,15]
[359496375,1746065453154,-508.37,0.000405,120]
[359496376,1746065453164,-113187.2826554,0.00040519,2]
[359496377,1746065453175,-3558.3745957,0.00040519,2]
[359496378,1746065453185,-12989.4996342,0.00040519,2]
[359496379,1746065453196,-218456.91,0.00040547,5]
[359496380,1746065453207,-151.0,0.00040547,14]
[359496381,1746065453217,-154.39747,0.00040547,14]
[359496382,1746065453227,-151.0,0.00040547,14]
[359496383,1746065453237,-291.090835,0.00040547,14]
[359496384,1746065453246,-291.090835,0.00040547,14]
[359496385,1746065453255,-159.87043,0.00040547,14]
[359496386,1746065453266,-314.905682,0.00040547,14]
[359496387,1746065453275,-314.905682,0.00040547,14]
[359496388,1746065453284,-151.0,0.00040547,14]
[359496389,1746065453294,-151.0,0.00040547,14]
[359496390,1746065453304,-151.0,0.00040547,14]
[359496391,1746065453314,-151.0,0.00040547,14]
[359496392,1746065453324,-151.0,0.00040547,14]
[359496393,1746065453333,-491.613061,0.00040547,14]
[359496394,1746065453343,-491.613061,0.00040547,14]
[359496395,1746065453352,-151.0,0.00040547,14]
[359496396,1746065453361,-219.661641,0.00040547,14]
[359496397,1746065453371,-226.256538,0.00040547,14]
[359496398,1746065453380,-151.0,0.00040547,14]
[359496399,1746065453390,-236.059044,0.00040547,14]
[359496400,1746065453399,-236.059044,0.00040547,14]
[359496401,1746065453409,-151.0,0.00040547,14]
[359496402,1746065453419,-151.0,0.00040547,14]
[359496403,1746065453428,-160.7731,0.00040547,14]
[359496404,1746065453438,-525.59217,0.00040547,14]
[359496405,1746065453448,-262.347889,0.00040547,14]
[359496406,1746065453458,-151.0,0.00040547,14]
[359496407,1746065453469,-234.111035,0.00040547,14]
[359496408,1746065453478,-502.714282,0.00040547,14]
[359496409,1746065453488,-502.714282,0.00040547,14]
[359496410,1746065453498,-158.70205,0.00040547,14]
[359496411,1746065453509,-151.0,0.00040547,14]
[359496412,1746065453519,-151.0,0.00040547,14]
[359496413,1746065453528,-151.0,0.00040547,14]
[359496414,1746065453537,-151.0,0.00040547,14]
[359496415,1746065453547,-358.496672,0.00040547,14]
[359496416,1746065453556,-151.0,0.00040547,14]
[359496417,1746065453565,-358.496672,0.00040547,14]
[359496418,1746065453575,-1390.123345,0.00040547,14]
[359496419,1746065453584,-1390.123345,0.00040547,14]
[359496420,1746065453594,-151.0,0.00040547,14]
[359496421,1746065453603,-151.0,0.00040547,14]
[359496422,1746065453613,-1617.07983564,0.00040628,15]
[359496423,1746065453622,-801.26,0.00040633,2]
[359496424,1746065453632,-899.13,0.00040633,2]
[359496425,1746065453642,-800.95,0.00040633,2]
[359496426,1746065453651,-800.95,0.00040633,2]
[359496427,1746065453664,-455.76,0.00040633,2]
[359496428,1746065453673,-150.0,0.00040651,7]
[359496429,1746065453683,-1333.0,0.00040658,120]
[359496430,1746065453693,-160.0,0.000407,63]
[359496431,1746065453703,-5678.58013427,0.00040728,16]
[359496432,1746065453713,-151.0,0.00040728,14]
[359496433,1746065453724,-151.0,0.00040728,14]
[359496434,1746065453735,-151.0,0.00040728,14]
[359496435,1746065453746,-150.0,0.0004074,2]
[359496436,1746065453755,-4993.30836407,0.000408,60]
[359496437,1746065453765,-218456.91,0.00040821,5]
[359496438,1746065453775,-151.0,0.00040821,14]
[359496439,1746065453787,-151.0,0.00040821,14]
[359496440,1746065453796,-151.0,0.00040821,14]
[359496441,1746065453806,-217.775685,0.00040821,14]
[359496442,1746065453815,-186.517645,0.00040821,14]
[359496443,1746065453824,-151.0,0.00040821,14]
[359496444,1746065453834,-151.0,0.00040821,14]
[359496445,1746065453844,-151.0,0.00040821,14]
[359496446,1746065453853,-1315.764669,0.00040821,14]
[359496447,1746065453863,-206.58909132,0.00040875,2]
[359496448,1746065453872,-1015.1409,0.00040888,7]
[359496449,1746065453882,-304.54228,0.00040888,30]
[359496450,1746065453891,-50000.0,0.000409,30]
[359496451,1746065453901,-508.37,0.000409,120]
[359496452,1746065453910,-4176.96,0.000409,14]
[359496453,1746065453919,-861.683,0.00040935,2]
[359496454,1746065453928,-150.0,0.00040968,7]
[359496455,1746065453938,-1000.0,0.00041,120]
[359496456,1746065453948,-4637.0,0.00041,30]
[359496457,1746065453957,-850.0,0.00041,2]
[359496458,1746065453967,-400.0,0.00041,12]
[359496459,1746065453978,-150.5,0.0004107,120]
[359496460,1746065453989,-150.5,0.0004107,120]
[359496461,1746065453998,-150.5,0.0004108,120]
[359496462,1746065454009,-150.5,0.0004108,120]
[359496463,1746065454018,-150.5,0.0004108,120]
[359496464,1746065454028,-304.54228,0.00041088,30]
[359496465,1746065454038,-150.5,0.0004109,120]
[359496466,1746065454047,-150.5,0.0004109,120]
[359496467,1746065454057,-150.5,0.0004109,120]
[359496468,1746065454067,-218456.91,0.00041095,5]
[359496469,1746065454077,-151.0,0.00041095,14]
[359496470,1746065454087,-226.613188,0.00041095,14]
[359496471,1746065454097,-222.125682,0.00041095,14]
[359496472,1746065454107,-222.125682,0.00041095,14]
[359496473,1746065454117,-150.0,0.00041095,120]
[359496474,1746065454127,-202.148189,0.00041095,14]
[359496475,1746065454138,-151.0,0.00041095,14]
[359496476,1746065454148,-151.0,0.00041095,14]
[359496477,1746065454157,-237.011954,0.00041095,14]
[359496478,1746065454166,-263.071309,0.00041095,14]
[359496479,1746065454176,-151.0,0.00041095,14]
[359496480,1746065454185,-263.071309,0.00041095,14]
[359496481,1746065454194,-2998.576951,0.00041095,14]
[359496482,1746065454203,-2998.576951,0.00041095,14]
[359496483,1746065454213,-151.0,0.00041095,14]
[359496484,1746065454222,-151.0,0.00041095,14]
[359496485,1746065454232,-151.0,0.00041095,14]
[359496486,1746065454241,-487.0,0.00041096,14]
[359496487,1746065454250,-400.0,0.00041096,12]
[359496488,1746065454260,-200.0,0.00041096,10]
[359496489,1746065454269,-500.0,0.00041096,30]
[359496490,1746065454278,-500.0,0.00041096,30]
[359496491,1746065454287,-500.0,0.00041096,30]
[359496492,1746065454296,-500.0,0.00041096,30]
[359496493,1746065454305,-500.0,0.00041096,30]
[359496494,1746065454314,-500.0,0.00041096,30]
[359496495,1746065454323,-500.0,0.00041096,30]
[359496496,1746065454332,-154.0,0.00041096,30]
[359496497,1746065454342,-176.59,0.00041096,30]
[359496498,1746065454351,-2000.0,0.000411,2]
[359496499,1746065454361,-389.421714,0.00041113,120]
[359496500,1746065454370,-2000.0,0.00041113,120]
[359496501,1746065454379,-558.776789,0.00041113,120]
[359496502,1746065454389,-240.131976,0.00041113,120]
[359496503,1746065454399,-150.52,0.00041187,2]
[359496504,1746065454410,-366.55894193,0.00041261,14]
[359496505,1746065454419,-150.0,0.00041285,30]
[359496506,1746065454429,-304.54228,0.00041288,30]
[359496507,1746065454438,-200.0,0.00041292,14]
[359496508,1746065454447,-508.37,0.000413,120]
[359496509,1746065454459,-152.0,0.00041304,13]
[359496510,1746065454469,-200.0,0.00041324,3]
[359496511,1746065454479,-23157.60412953,0.00041369,5]
[359496512,1746065455024,-1698.95788995,0.00041369,5]
[359496513,1746065455035,-2276.14825135,0.00041369,5]
[359496514,1746065455047,-819.36999997,0.00041369,5]
[359496515,1746065455576,-442.7571,0.00040419,15]
[359496516,1746065455622,-2729.15543529,0.00040419,15]
[359496517,1746065455633,-3186.42223409,0.00040419,15]
[359496518,1746065455643,-400.28798881,0.00041369,5]
[359496519,1746065455666,-2107.75981245,0.00041369,5]
[359496520,1746065455677,-556.3898016,0.00041369,5]
[359496521,1746065455688,-7178.74776248,0.00041369,5]
[359496522,1746065456131,-309.20075418,0.00022957,2]
[359496523,1746065456145,-834.57224582,0.00022957,2]
[359496524,1746065456154,-1138.0,0.00025957,2]
[359496525,1746065456163,-297.14132824,0.00028957,2]
[359496526,1746065456244,-263.258183,0.00028957,2]
[359496527,1746065456256,-577.60048876,0.00028957,2]
[359496528,1746065456266,-214.30954403,0.00040633,2]
[359496529,1746065456277,-778.70623745,0.00040633,2]
[359496530,1746065456336,-608.31421852,0.00040633,2]
[359496531,1746065456345,-316.13578152,0.00041369,5]
[359496532,1746065456454,-1484.73048015,0.00041369,5]
[359496533,1746065456467,-11940.83298418,0.00041369,5]
[359496534,1746065456478,-456.69066605,0.00041369,5]
[359496535,1746065456490,-653.72177808,0.00041369,5]
[359496536,1746065456505,-1138.0,0.00031957,2]
[359496537,1746065456515,-3534.93677787,0.00041369,5]
[359496538,1746065456528,-4993.61513665,0.00041369,5]
[359496539,1746065456541,-58641.82188533,0.00041369,5]
[359496540,1746065456557,-500.0,0.00041369,5]
[359496541,1746065458926,154.79,0.00019313,2]
[359496542,1746065462602,1000.0,0.00019292,2]
[359496543,1746065628433,250.0,0.00017,2]
[359496544,1746065629594,300.0,0.00019,2]
[359496546,1746065787821,9352.0,0.00032877,60]
[359496548,1746065997509,150.0,0.00032867,60]
[359496549,1746066065310,150.0,0.00032877,60]
[359496550,1746066136872,151.0,0.00019313,2]
[359496551,1746066363791,4007.3062333,8e-05,2]
[359496555,1746066431641,396.68636142,0.0003,120]
[359496579,1746066476064,2025.71075031,0.0001,2]
[359496580,1746066531059,2230.94,0.00018748,2]
[359496587,1746066590502,163.5,0.00018762,2]
[359496588,1746066608644,250.0,0.00018662,2]
[359496591,1746066631027,1000.0,0.00018677,2]
[359496597,1746066632218,-176.83558037,0.00019372,2]
[359496598,1746066632228,-200.0,0.00019376,2]
[359496599,1746066632239,-250.0,0.0001938,2]
[359496600,1746066632249,-164.3455107,0.0001938,2]
[359496601,1746066632259,-176.83558036,0.00019393,2]
[359496602,1746066632268,-1200.0,0.00019397,2]
[359496603,1746066632278,-300.0,0.00019397,2]
[359496604,1746066632287,-625.0591,0.00019398,2]
[359496605,1746066632296,-6362.38396558,0.00019398,2]
[359496606,1746066632308,-9860.3378847,0.00019398,2]
[359496607,1746066632385,-370.04022624,0.00019398,2]
[359496608,1746066632396,-1231.18295853,0.00019398,2]
[359496609,1746066632410,-361.41704813,0.00019398,2]